bitfinex-derivatives/quotes_BTCF0:USTF0_20240907
["timestamp","ask_amount","ask_price","bid_price","bid_amount"]
[1725742178845,0.001,54231.0,54230.0,1.3532]
[1725742179655,0.2,54239.0,54231.0,0.092202]
[1725742179859,0.001,54235.0,54230.0,0.2]
[1725742180047,0.001,54235.0,54233.0,0.092198]
[1725742180247,0.2,54239.0,54233.0,0.066198]
[1725742181248,0.201,54239.0,54233.0,0.066198]
[1725742182159,0.201,54239.0,54234.0,0.092197]
[1725742183053,0.092173,54248.0,54235.0,0.2]
[1725742183256,0.092173,54248.0,54233.0,0.005]
[1725742183457,0.2,54244.0,54237.0,0.092192]
[1725742183758,0.2,54244.0,54233.0,0.005]
[1725742183759,0.2,54244.0,54238.0,0.09219]
[1725742184152,0.2,54240.0,54239.0,0.092189]
[1725742184352,0.2,54245.0,54240.0,0.092187]
[1725742184553,0.001,54244.0,54240.0,0.092187]
[1725742186052,0.2,54245.0,54240.0,0.092187]
[1725742186961,0.2,54245.0,54240.0,0.096187]
[1725742188163,0.2,54245.0,54240.0,0.004]
[1725742188453,0.2,54241.0,54240.0,0.004]
[1725742188658,0.15387881,54241.0,54240.0,0.004]
[1725742190561,0.15487881,54241.0,54239.0,0.092188]
[1725742191154,0.09030893,54241.0,54239.0,0.092188]
[1725742192055,0.001,54241.0,54239.0,0.092188]
[1725742192759,0.092185,54242.0,54239.0,0.092188]
[1725742192953,0.03683941,54242.0,54239.0,0.093188]
[1725742193258,0.292178,54246.0,54239.0,0.093188]
[1725742193661,0.2,54243.0,54239.0,0.093188]
[1725742193857,0.092185,54242.0,54239.0,0.092188]
[1725742194454,0.092185,54242.0,54240.0,0.092187]
[1725742194650,0.09217,54250.0,54238.0,0.09219]
[1725742194851,0.092176,54247.0,54245.0,0.092178]
[1725742196658,0.092162,54255.0,54251.0,0.092167]
[1725742196857,0.092162,54255.0,54245.0,0.2]
[1725742197172,0.092162,54255.0,54242.0,0.092182]
[1725742197173,0.2,54251.0,54242.0,0.292182]
[1725742197357,0.2,54251.0,54249.0,0.09217]
[1725742197660,0.2,54251.0,54250.0,0.09217]
[1725742200962,0.092164,54254.0,54250.0,0.09317]
[1725742201565,0.092164,54254.0,54251.0,0.092168]
[1725742201962,0.092164,54254.0,54253.0,0.092165]
[1725742203064,0.2,54255.0,54249.0,0.092171]
[1725742203367,0.68192,54259.0,54249.0,0.092171]
[1725742203368,0.2,54250.0,54249.0,0.092171]
[1725742204271,0.2,54250.0,54249.0,0.096171]
[1725742205770,0.2,54250.0,54249.0,0.092171]
[1725742206267,0.2,54250.0,54249.0,0.40359985]
[1725742210274,0.09217,54251.0,54249.0,0.40359985]
[1725742210472,0.09217,54251.0,54250.0,0.31142885]
[1725742210865,0.09217,54251.0,54250.0,0.14046232]
[1725742212170,0.09317,54251.0,54250.0,0.14046232]
[1725742212665,0.09317,54251.0,54250.0,0.25088025]
[1725742212872,0.09417,54251.0,54250.0,0.25088025]
[1725742213176,0.09417,54251.0,54249.0,0.18418624]
[1725742213567,0.09417,54251.0,54249.0,0.092171]
[1725742213975,0.09417,54251.0,54249.0,0.18418624]
[1725742214170,0.09217,54250.0,54249.0,0.18418624]
[1725742214472,0.09217,54250.0,54249.0,0.092171]
[1725742216370,0.09217,54250.0,54247.0,0.09201524]
[1725742216371,0.092165,54254.0,54247.0,0.09201524]
[1725742216575,0.092158,54257.0,54256.0,0.092158]
[1725742216970,0.092158,54257.0,54256.0,0.14737353]
[1725742217275,0.092158,54257.0,54256.0,0.092158]
[1725742218368,0.092158,54257.0,54256.0,0.14736986]
[1725742218874,0.292158,54257.0,54256.0,0.05521186]
[1725742219074,0.297158,54257.0,54256.0,0.05621186]
[1725742219270,0.297158,54257.0,54256.0,0.001]
[1725742222466,0.35372893,54257.0,54256.0,0.001]
[1725742223868,0.297158,54257.0,54256.0,0.001]
[1725742225474,0.35372901,54257.0,54256.0,0.001]
[1725742225682,0.44588701,54257.0,54256.0,0.001]
[1725742226569,0.62907543,54257.0,54256.0,0.001]
[1725742227269,0.09117,54250.0,54249.0,0.092171]
[1725742227465,0.34774582,54250.0,54249.0,0.092171]
[1725742228175,0.09117,54250.0,54249.0,0.092171]
[1725742228477,0.09117,54250.0,54249.0,0.14743827]
[1725742228671,0.09317,54250.0,54249.0,0.14743827]
[1725742229477,0.09317,54250.0,54249.0,0.092171]
[1725742231482,0.002,54250.0,54249.0,0.845171]
[1725742232579,0.002,54250.0,54249.0,0.092171]
[1725742233783,0.002,54250.0,54249.0,0.1474344]
[1725742233986,0.002,54250.0,54246.0,0.09490425]
[1725742233987,0.092167,54252.0,54251.0,0.092168]
[1725742237185,0.093167,54252.0,54251.0,0.092168]
[1725742237573,0.001,54252.0,54251.0,0.092168]
[1725742239974,0.001,54252.0,54251.0,0.292168]
[1725742240475,0.001,54252.0,54251.0,1.537336]
[1725742240881,0.001,54252.0,54251.0,0.937336]
[1725742241183,0.001,54252.0,54251.0,0.40611161]
[1725742241387,0.001,54252.0,54251.0,0.46134841]
[1725742241593,0.001,54252.0,54251.0,0.16918041]
[1725742241792,0.001,54252.0,54251.0,0.11394361]
[1725742241990,0.093167,54252.0,54251.0,0.11394361]
[1725742243080,0.293167,54252.0,54251.0,0.11394361]
[1725742243479,0.092172,54249.0,54248.0,0.092173]
[1725742243680,0.292172,54249.0,54248.0,0.092173]
[1725742244683,0.292172,54249.0,54248.0,0.094173]
[1725742244884,0.292172,54249.0,54248.0,0.002]
[1725742246181,0.292172,54249.0,54246.0,0.092175]
[1725742246484,0.293172,54249.0,54246.0,0.092175]
[1725742247391,0.292172,54249.0,54246.0,0.093175]
[1725742247799,0.092175,54247.0,54246.0,0.001]
[1725742248088,0.092175,54247.0,54228.0,0.321]
[1725742248089,0.092192,54237.0,54228.0,0.321]
[1725742248285,0.2,54235.0,54227.0,0.1414]
[1725742248688,0.292196,54235.0,54232.0,0.092199]
[1725742249887,0.29219,54238.0,54233.0,0.092197]
[1725742250095,0.091193,54237.0,54227.0,0.1235901]
[1725742250390,0.2,54238.0,54227.0,0.1235901]
[1725742250391,0.092195,54236.0,54232.0,0.0922]
[1725742250995,0.092195,54236.0,54232.0,0.0932]
[1725742251589,0.092195,54236.0,54235.0,0.07359878]
[1725742253288,0.094195,54236.0,54235.0,0.07359878]
[1725742253489,0.092195,54235.0,54234.0,0.07359878]
[1725742254796,0.093195,54235.0,54234.0,0.07359878]
[1725742254996,0.093195,54235.0,54233.0,0.092199]
[1725742254997,0.093195,54235.0,54233.0,0.16579778]
[1725742255899,0.092197,54234.0,54233.0,0.16579778]
[1725742257284,0.2,54238.0,54235.0,0.092195]
[1725742257488,0.2,54238.0,54235.0,0.1473453]
[1725742258385,0.2,54238.0,54235.0,0.092195]
[1725742258386,0.202,54238.0,54235.0,0.092195]
[1725742258884,0.092194,54236.0,54235.0,0.092195]
[1725742260496,0.094194,54236.0,54235.0,0.092195]
[1725742261792,0.092175,54247.0,54235.0,0.092195]
[1725742261793,0.2,54244.0,54235.0,0.2]
[1725742262000,0.092187,54241.0,54235.0,0.2]
[1725742262897,0.09218,54244.0,54239.0,0.2]
[1725742263104,0.09218,54244.0,54240.0,0.0492]
[1725742263498,0.2,54248.0,54245.0,0.092178]
[1725742263702,0.092177,54247.0,54245.0,0.092178]
[1725742264004,0.092177,54246.0,54245.0,0.092178]
[1725742264598,0.2,54248.0,54242.0,0.092184]
[1725742264796,0.2,54243.0,54242.0,0.092184]
[1725742265701,0.292182,54243.0,54242.0,0.092184]
[1725742267398,0.295182,54243.0,54242.0,0.092184]
[1725742268089,0.292182,54243.0,54242.0,0.092184]
[1725742268496,0.092185,54241.0,54240.0,0.141387]
[1725742271205,0.092185,54241.0,54238.0,0.07669499]
[1725742271206,0.092189,54239.0,54238.0,0.07669499]
[1725742271406,0.092189,54239.0,54238.0,0.02154469]
[1725742271707,0.092189,54239.0,54238.0,0.05518496]
[1725742272401,0.092189,54239.0,54237.0,0.092191]
[1725742272904,0.001,54241.0,54235.0,0.07359878]
[1725742272905,0.2,54238.0,54235.0,0.07359878]
[1725742273105,0.2,54238.0,54233.0,0.11999878]
[1725742273297,0.092187,54240.0,54237.0,0.05520672]
[1725742273602,0.092197,54234.0,54233.0,0.0464]
[1725742274294,0.291197,54234.0,54233.0,0.0464]
[1725742275099,0.291197,54234.0,54233.0,0.0474]
[1725742277806,0.291197,54234.0,54233.0,0.001]
[1725742279407,0.091197,54234.0,54233.0,0.093199]
[1725742281410,0.091197,54234.0,54233.0,0.2336896]
[1725742284516,0.04507402,54234.0,54233.0,0.2336896]
[1725742288313,0.24507402,54234.0,54233.0,0.2336896]
[1725742288512,0.24507402,54234.0,54233.0,0.093199]
[1725742289615,0.24507402,54234.0,54233.0,0.092199]
[1725742289918,0.24507402,54234.0,54233.0,0.093199]
[1725742290614,0.24507402,54234.0,54233.0,0.092199]
[1725742294025,0.15507402,54234.0,54233.0,0.092199]
[1725742297710,0.04507402,54234.0,54233.0,0.092199]
[1725742297912,0.139178,54246.0,54233.0,1.26316]
[1725742298116,0.092178,54246.0,54242.0,0.05529766]
[1725742298311,0.202182,54243.0,54241.0,0.05529766]
[1725742298512,0.202182,54243.0,54242.0,0.05529766]
[1725742299923,0.211182,54243.0,54242.0,0.05629766]
[1725742300315,0.211182,54243.0,54242.0,0.001]
[1725742301023,0.211182,54243.0,54242.0,0.093184]
[1725742301811,0.211182,54243.0,54242.0,0.14848166]
[1725742302222,0.211182,54243.0,54242.0,0.093184]
[1725742303209,0.856444,54243.0,54242.0,0.001]
[1725742303425,1.456444,54243.0,54242.0,0.001]
[1725742305225,0.092192,54238.0,54236.0,0.092193]
[1725742305428,1.355262,54243.0,54236.0,0.092193]
[1725742305429,0.201192,54237.0,54236.0,0.092193]
[1725742306113,0.200192,54237.0,54236.0,0.092193]
[1725742306921,0.202192,54237.0,54236.0,0.092193]
[1725742308320,0.200192,54237.0,54236.0,0.092193]
[1725742308520,0.203192,54237.0,54236.0,0.092193]
[1725742309129,0.092198,54234.0,54232.0,0.10902031]
[1725742309331,0.111,54237.0,54227.0,0.05529766]
[1725742309332,0.092207,54228.0,54227.0,0.05529766]
[1725742309633,0.092207,54228.0,54220.0,0.09214055]
[1725742309634,0.092223,54219.0,54214.0,0.07375027]
[1725742309821,0.11,54228.0,54203.0,0.06589082]
[1725742309822,0.092248,54204.0,54203.0,0.06589082]
[1725742310028,0.09225,54203.0,54202.0,0.06685082]
[1725742310217,0.11,54203.0,54199.0,0.06525103]
[1725742310415,0.11,54203.0,54194.0,0.092264]
[1725742310416,0.11,54200.0,54191.0,0.00942304]
[1725742310619,0.0934,54209.0,54194.0,0.11]
[1725742310831,0.11,54204.0,54197.0,0.11]
[1725742311017,0.11,54207.0,54203.0,0.092249]
[1725742311218,0.10966665,54211.0,54204.0,0.11]
[1725742311417,0.140526,54217.0,54207.0,0.11]
[1725742311418,0.11,54213.0,54207.0,0.11]
[1725742311624,0.12794443,54213.0,54212.0,0.092235]
[1725742311927,0.03562722,54213.0,54212.0,0.092235]
[1725742312124,0.1095606,54213.0,54209.0,0.2]
[1725742312331,0.0326606,54213.0,54212.0,0.092235]
[1725742312521,0.0326606,54213.0,54210.0,0.5989]
[1725742312522,0.10956326,54217.0,54210.0,0.5989]
[1725742312723,0.10956326,54220.0,54219.0,0.092223]
[1725742312921,0.10956326,54220.0,54219.0,0.692223]
[1725742313127,0.10956326,54220.0,54219.0,1.245543]
[1725742313325,0.10956326,54221.0,54220.0,0.092221]
[1725742313735,0.10956326,54221.0,54220.0,0.645501]
[1725742313925,0.10956326,54221.0,54220.0,0.845501]
[1725742314828,0.25707845,54240.0,54220.0,1.35328]
[1725742314829,0.10956326,54223.0,54220.0,1.35328]
[1725742315024,0.10956326,54223.0,54222.0,0.292218]
[1725742315223,0.10956326,54223.0,54222.0,0.845498]
[1725742315628,0.10956326,54223.0,54222.0,0.644398]
[1725742315830,0.10956326,54223.0,54222.0,0.091118]
[1725742316033,0.10956326,54225.0,54224.0,0.092214]
[1725742316935,0.2,54232.0,54222.0,0.048]
[1725742317232,0.1095731,54224.0,54223.0,0.092216]
[1725742317627,0.1085731,54224.0,54223.0,0.292216]
[1725742318337,0.2,54232.0,54223.0,0.2]
[1725742318528,0.2,54232.0,54228.0,0.092206]
[1725742318928,0.2,54232.0,54229.0,0.092205]
[1725742319123,0.2,54232.0,54223.0,0.2]
[1725742319124,0.2,54232.0,54223.0,0.203]
[1725742319738,0.2,54232.0,54231.0,0.092202]
[1725742319939,0.203,54232.0,54231.0,0.092202]
[1725742320641,0.2,54232.0,54231.0,0.092202]
[1725742320831,0.2,54236.0,54234.0,0.092196]
[1725742323138,0.21,54236.0,54234.0,0.093196]
[1725742323636,0.21,54236.0,54235.0,0.092195]
[1725742325438,0.211,54236.0,54235.0,0.093195]
[1725742331242,0.303194,54236.0,54235.0,0.093195]
[1725742333641,0.40493756,54236.0,54235.0,0.093195]
[1725742334739,0.09176257,54236.0,54235.0,0.093195]
[1725742335441,0.091756,54236.0,54235.0,0.093195]
[1725742336141,0.091756,54236.0,54235.0,0.293195]
[1725742336342,0.091756,54236.0,54235.0,0.093195]
[1725742336738,0.091756,54236.0,54235.0,0.11077265]
[1725742338045,0.011,54236.0,54235.0,0.11077265]
[1725742338239,0.09175351,54236.0,54235.0,0.11077265]
[1725742338649,0.04660966,54236.0,54235.0,0.11077265]
[1725742339548,0.011,54236.0,54235.0,0.11077265]
[1725742342541,0.011,54236.0,54235.0,0.40296765]
[1725742342844,0.24018888,54251.0,54235.0,0.40296765]
[1725742342845,0.10978141,54246.0,54239.0,0.092189]
[1725742343042,0.10978141,54247.0,54246.0,0.092177]
[1725742343350,0.10978141,54247.0,54239.0,0.292189]
[1725742344052,0.10978141,54247.0,54239.0,0.293189]
[1725742344347,0.014,54246.0,54239.0,0.293189]
[1725742345546,0.10978141,54247.0,54246.0,0.092177]
[1725742345748,0.01,54247.0,54246.0,0.092177]
[1725742346943,0.40195341,54250.0,54247.0,0.092174]
[1725742348638,0.13731832,54249.0,54247.0,0.092174]
[1725742348845,0.03560457,54248.0,54247.0,0.092174]
[1725742349042,0.13731832,54248.0,54247.0,0.092174]
[1725742349243,0.09218106,54248.0,54247.0,0.092174]
[1725742349445,0.03560457,54248.0,54247.0,0.093174]
[1725742349844,0.13731832,54248.0,54247.0,0.093174]
[1725742350040,0.08074183,54248.0,54247.0,0.093174]
[1725742350241,0.16456021,54249.0,54247.0,0.093174]
[1725742350446,0.04560457,54248.0,54247.0,0.093174]
[1725742350645,0.14731832,54248.0,54247.0,0.093174]
[1725742352348,0.13731832,54248.0,54247.0,0.092174]
[1725742352544,0.13731832,54248.0,54247.0,0.093174]
[1725742353250,0.14731832,54248.0,54247.0,0.093174]
[1725742355557,0.1473179,54248.0,54247.0,0.093174]
[1725742355755,0.01,54248.0,54247.0,0.093174]
[1725742356560,0.11974478,54248.0,54247.0,0.093174]
[1725742358851,0.01,54248.0,54247.0,0.093174]
[1725742359952,0.003,54248.0,54247.0,0.092174]
[1725742360561,0.095173,54248.0,54247.0,0.092174]
[1725742360759,0.140973,54248.0,54247.0,0.092174]
[1725742361956,0.138973,54248.0,54247.0,0.092174]
[1725742362755,1.19984,54248.0,54236.0,0.05521287]
[1725742363063,0.11,54237.0,54235.0,0.092195]
[1725742363666,0.25632637,54237.0,54235.0,0.092195]
[1725742363867,0.04514294,54236.0,54235.0,0.092195]
[1725742364169,0.24514294,54236.0,54235.0,0.092195]
[1725742364369,0.2,54236.0,54235.0,0.092195]
[1725742364565,0.14632637,54239.0,54235.0,0.092195]
[1725742364760,0.2,54238.0,54235.0,0.092195]
[1725742364967,0.092194,54236.0,54235.0,0.092195]
[1725742365468,0.093194,54236.0,54235.0,0.092195]
[1725742367264,0.092194,54236.0,54235.0,0.092195]
[1725742367469,0.001,54236.0,54235.0,0.092195]
[1725742368170,0.092197,54235.0,54232.0,0.0922]
[1725742368669,0.092197,54235.0,54233.0,0.092199]
[1725742369670,0.17493066,54237.0,54232.0,0.003]
[1725742369862,0.12823066,54237.0,54232.0,0.003]
[1725742370366,0.12823066,54237.0,54235.0,0.092195]
[1725742370771,0.2,54238.0,54235.0,0.092195]
[1725742370968,0.29219,54238.0,54237.0,0.05525757]
[1725742371869,0.29219,54238.0,54235.0,0.092195]
[1725742372170,0.29319,54238.0,54235.0,0.092195]
[1725742372371,0.092193,54237.0,54235.0,0.092195]
[1725742378565,0.092193,54237.0,54236.0,0.092194]
[1725742379075,0.093193,54237.0,54236.0,0.092194]
[1725742380778,0.092193,54237.0,54236.0,0.092194]
[1725742380979,0.094193,54237.0,54236.0,0.092194]
[1725742383476,0.092193,54237.0,54236.0,0.092194]
[1725742384282,0.094193,54237.0,54236.0,0.092194]
[1725742385173,0.093193,54237.0,54236.0,0.092194]
[1725742386370,0.092197,54235.0,54234.0,0.092195]
[1725742386782,0.11,54237.0,54235.0,0.092194]
[1725742387482,0.202192,54237.0,54235.0,0.092194]
[1725742388380,0.202192,54237.0,54235.0,0.093194]
[1725742388877,0.092192,54237.0,54236.0,0.092194]
[1725742390075,0.22042266,54237.0,54236.0,0.092194]
[1725742390271,0.12823066,54237.0,54236.0,0.092194]
[1725742390476,0.12823066,54239.0,54236.0,0.0471]
[1725742390676,0.12823066,54240.0,54239.0,0.202189]
[1725742391196,0.12823066,54240.0,54239.0,0.092189]
[1725742391487,0.17337319,54240.0,54239.0,0.092189]
[1725742391787,0.04514253,54240.0,54239.0,0.092189]
[1725742391990,0.202185,54241.0,54240.0,0.092187]
[1725742392193,0.24732796,54241.0,54240.0,0.092187]
[1725742393686,0.04514283,54241.0,54240.0,0.092187]
[1725742393887,0.092182,54243.0,54241.0,0.092184]
[1725742394787,0.092182,54243.0,54242.0,0.092184]
[1725742396189,0.096182,54243.0,54242.0,0.092184]
[1725742396887,0.092182,54243.0,54242.0,0.093184]
[1725742397093,0.098182,54243.0,54242.0,0.093184]
[1725742400898,0.19990826,54243.0,54242.0,0.093184]
[1725742408895,0.13379094,54243.0,54242.0,0.093184]
[1725742412298,0.098182,54243.0,54242.0,0.093184]
[1725742412696,0.13379094,54243.0,54242.0,0.093184]
[1725742415789,0.10772436,54243.0,54242.0,0.203184]
[1725742415998,0.04160828,54243.0,54242.0,0.093184]
[1725742416494,0.09818399,54243.0,54242.0,0.093184]
[1725742416798,0.04160828,54243.0,54242.0,0.093184]
[1725742416993,0.14332596,54243.0,54242.0,0.093184]
[1725742418093,0.30845287,54243.0,54242.0,0.093184]
[1725742419204,0.14332292,54243.0,54242.0,0.093184]
[1725742423900,0.006,54243.0,54242.0,0.093184]
[1725742424607,0.092177,54246.0,54245.0,0.092179]
[1725742427493,0.092171,54250.0,54247.0,0.092175]
[1725742427696,0.092172,54249.0,54247.0,0.092175]
[1725742428904,0.092163,54255.0,54246.0,0.11]
[1725742429203,0.092164,54254.0,54251.0,0.092167]
[1725742430007,0.092158,54258.0,54256.0,0.09216]
[1725742430207,0.092158,54258.0,54253.0,0.11]
[1725742430401,0.092158,54257.0,54255.0,0.092161]
[1725742430600,0.79220001,54259.0,54250.0,0.11]
[1725742430601,0.20216,54256.0,54250.0,0.11]
[1725742431009,0.18344526,54253.0,54250.0,0.11]
[1725742431209,0.10170017,54252.0,54250.0,0.11]
[1725742431400,0.10170017,54251.0,54250.0,0.20217]
[1725742431605,0.10170017,54251.0,54250.0,0.11]
[1725742431606,0.16493743,54251.0,54250.0,0.11]
[1725742431798,0.26663708,54251.0,54250.0,0.11]
[1725742432608,0.10169965,54251.0,54250.0,0.111]
[1725742432914,0.10169965,54251.0,54250.0,0.20317]
[1725742433103,0.10169965,54251.0,54250.0,0.20217]
[1725742433304,0.10869965,54251.0,54250.0,0.20317]
[1725742433504,0.052131,54251.0,54250.0,0.20317]
[1725742433704,0.052131,54251.0,54250.0,0.21660399]
[1725742434609,0.10869965,54251.0,54250.0,0.21660399]
[1725742434916,0.052131,54251.0,54250.0,0.21660399]
[1725742438910,0.007,54251.0,54250.0,0.21660399]
[1725742448136,0.007,54251.0,54250.0,0.10660399]
[1725742448434,0.007,54251.0,54250.0,0.21660399]
[1725742449935,0.11,54256.0,54254.0,0.092162]
[1725742450237,0.092159,54257.0,54254.0,0.092162]
[1725742450433,0.092159,54257.0,54250.0,0.12543399]
[1725742451040,0.092159,54257.0,54255.0,0.092161]
[1725742451234,0.092159,54257.0,54256.0,0.09216]
[1725742452637,0.145159,54257.0,54256.0,0.09216]
[1725742454046,0.32860426,54257.0,54256.0,0.09216]
[1725742454344,0.24185855,54257.0,54256.0,0.09216]
[1725742454640,0.24585855,54257.0,54256.0,0.09216]
[1725742455144,0.24585855,54257.0,54246.0,0.092176]
[1725742455145,0.092181,54244.0,54242.0,0.092183]
[1725742455442,0.092181,54244.0,54225.0,0.321]
[1725742455443,0.11,54243.0,54225.0,0.321]
[1725742455647,0.11,54229.0,54228.0,0.092207]
[1725742456145,0.04514457,54229.0,54225.0,0.11]
[1725742456341,0.04514457,54228.0,54227.0,0.092209]
[1725742456546,0.04514457,54228.0,54225.0,0.11]
[1725742456735,0.04514457,54228.0,54227.0,0.092209]
[1725742456933,0.04514457,54228.0,54227.0,0.202209]
[1725742457339,0.03514457,54228.0,54227.0,0.202209]
[1725742457543,0.14659613,54230.0,54229.0,0.092206]
[1725742457740,0.04514766,54230.0,54229.0,0.092206]
[1725742458950,0.04514766,54230.0,54229.0,0.095206]
[1725742459335,0.04514754,54230.0,54229.0,0.095206]
[1725742460633,0.11,54232.0,54229.0,0.093206]
[1725742460833,0.04514754,54231.0,54229.0,0.10719796]
[1725742461037,0.11,54232.0,54229.0,0.10719796]
[1725742461240,0.202204,54230.0,54229.0,0.001]
[1725742461549,0.755404,54230.0,54229.0,0.001]
[1725742461740,0.092209,54227.0,54222.0,0.092217]
[1725742461934,0.11,54224.0,54222.0,0.092217]
[1725742462442,0.11,54224.0,54223.0,0.092216]
[1725742462648,0.11,54224.0,54218.0,0.0552564]
[1725742462945,0.092226,54217.0,54216.0,0.00096]
[1725742463146,0.092226,54217.0,54213.0,0.0552564]
[1725742463147,0.092229,54216.0,54213.0,0.01368017]
[1725742463355,0.11,54214.0,54207.0,0.0552564]
[1725742463642,0.11,54214.0,54206.0,0.1652564]
[1725742464050,0.2,54215.0,54212.0,0.092234]
[1725742464442,0.001,54214.0,54212.0,0.092234]
[1725742465150,0.2,54215.0,54212.0,0.092234]
[1725742465452,0.2,54215.0,54212.0,0.095234]
[1725742466050,0.097,54216.0,54214.0,0.092231]
[1725742467151,0.097,54216.0,54212.0,0.003]
[1725742467152,0.2,54215.0,54212.0,0.003]
[1725742467850,0.2,54215.0,54214.0,0.001]
[1725742468754,0.2,54215.0,54212.0,0.10876081]
[1725742469248,0.092231,54214.0,54212.0,0.01652681]
[1725742469451,0.2,54215.0,54212.0,0.01652681]
[1725742469452,0.292231,54215.0,54212.0,0.01652681]
[1725742470151,0.092232,54214.0,54212.0,0.003]
[1725742470547,0.091232,54214.0,54209.0,0.092239]
[1725742470749,0.2,54210.0,54209.0,0.092239]
[1725742470950,0.091232,54214.0,54209.0,0.092239]
[1725742471146,0.2,54210.0,54209.0,0.092239]
[1725742473152,0.092235,54212.0,54208.0,0.01397028]
[1725742473354,0.092235,54212.0,54199.0,0.0552564]
[1725742473355,0.140928,54216.0,54209.0,0.002]
[1725742473547,0.09223,54215.0,54211.0,0.092236]
[1725742476342,0.09223,54215.0,54211.0,0.093236]
[1725742477143,0.09223,54215.0,54211.0,0.094236]
[1725742477747,0.09223,54215.0,54211.0,0.1061112]
[1725742477949,0.09223,54215.0,54211.0,0.1071112]
[1725742479460,0.09223,54215.0,54211.0,0.1061112]
[1725742479652,0.0487,54216.0,54215.0,0.09223]
[1725742479957,0.2,54217.0,54216.0,0.092228]
[1725742480558,0.139118,54222.0,54213.0,0.2]
[1725742480856,0.139118,54222.0,54220.0,0.09222]
[1725742480857,0.0469,54222.0,54220.0,0.09222]
[1725742481557,0.0469,54222.0,54211.0,0.0648752]
[1725742481558,0.0469,54222.0,54216.0,0.092226]
[1725742481749,0.2,54218.0,54211.0,0.0648752]
[1725742482155,0.2,54218.0,54211.0,0.0168752]
[1725742482351,0.2,54212.0,54211.0,0.0168752]
[1725742482552,0.092229,54216.0,54211.0,0.0138752]
[1725742482748,0.092229,54216.0,54213.0,0.092233]
[1725742483357,0.092229,54216.0,54211.0,0.008]
[1725742483558,0.092235,54212.0,54211.0,0.008]
[1725742484062,0.092236,54211.0,54210.0,0.092238]
[1725742484260,0.289236,54211.0,54210.0,0.092238]
[1725742486961,0.294236,54211.0,54210.0,0.092238]
[1725742487962,0.292236,54211.0,54210.0,0.092238]
[1725742488369,0.292236,54211.0,54210.0,0.1474944]
[1725742488869,0.292236,54211.0,54210.0,0.092238]
[1725742489956,0.289236,54211.0,54210.0,0.092238]
[1725742490163,0.293236,54211.0,54210.0,0.092238]
[1725742490671,0.293236,54211.0,54210.0,0.16591123]
[1725742490866,0.291236,54211.0,54210.0,0.16591123]
[1725742491174,0.291236,54211.0,54210.0,0.092238]
[1725742493469,0.291236,54211.0,54210.0,0.10326053]
[1725742495973,0.289236,54211.0,54210.0,0.10326053]
[1725742496874,0.291236,54211.0,54210.0,0.10326053]
[1725742497674,0.289236,54211.0,54210.0,0.10326053]
[1725742499176,0.292236,54211.0,54210.0,0.10326053]
[1725742501280,0.292236,54211.0,54210.0,0.01102253]
[1725742501574,0.09224,54209.0,54208.0,0.09190238]
[1725742501766,0.29224,54209.0,54208.0,0.2324594]
[1725742501971,0.29224,54209.0,54208.0,0.23245964]
[1725742502266,0.29224,54209.0,54208.0,0.092241]
[1725742502976,0.29224,54209.0,54208.0,0.18414338]
[1725742503177,0.29724,54209.0,54208.0,0.092241]
[1725742503774,0.29224,54209.0,54208.0,0.092241]
[1725742503979,0.29324,54209.0,54208.0,0.092241]
[1725742504782,0.29324,54209.0,54208.0,0.18414338]
[1725742505475,0.29724,54209.0,54208.0,0.092241]
[1725742506182,0.29424,54209.0,54208.0,0.092241]
[1725742506988,0.29524,54209.0,54208.0,0.092241]
[1725742508387,0.29224,54209.0,54208.0,0.092241]
[1725742508582,0.29824,54209.0,54208.0,0.092241]
[1725742509779,0.09824,54209.0,54208.0,0.092241]
[1725742510595,0.006,54209.0,54208.0,0.092241]
[1725742513684,0.006,54209.0,54208.0,0.186441]
[1725742520190,0.006,54209.0,54208.0,0.24178821]
[1725742520386,0.006,54209.0,54208.0,0.186441]
[1725742521276,0.1,54210.0,54209.0,0.09224]
[1725742521586,0.14516438,54210.0,54209.0,0.09224]
[1725742522089,0.14516438,54210.0,54209.0,0.18448]
[1725742523781,0.14916438,54210.0,54209.0,0.18448]
[1725742525393,0.14916394,54210.0,54209.0,0.18448]
[1725742527088,0.14916394,54210.0,54209.0,0.09224]
[1725742527789,0.26895216,54210.0,54209.0,0.09224]
[1725742527985,0.37072766,54210.0,54209.0,0.09224]
[1725742528497,0.104,54210.0,54209.0,0.09224]
[1725742529792,0.092241,54208.0,54207.0,0.05534346]
[1725742529996,0.11,54208.0,54206.0,0.05532887]
[1725742530191,0.11,54208.0,54204.0,0.08480724]
[1725742530192,0.092245,54206.0,54204.0,0.05532887]
[1725742530396,0.0965,54207.0,54204.0,0.05532887]
[1725742530397,0.202247,54205.0,54204.0,0.05532887]
[1725742531194,0.202247,54205.0,54203.0,0.06631627]
[1725742531396,0.202247,54205.0,54203.0,0.05532887]
[1725742531585,0.202247,54205.0,54203.0,0.14757887]
[1725742532094,0.2,54204.0,54203.0,0.14757887]
[1725742533689,0.2,54204.0,54203.0,0.09225]
[1725742534191,0.206,54204.0,54203.0,0.09225]
[1725742536799,0.202,54204.0,54203.0,0.14757887]
[1725742537207,0.202,54204.0,54203.0,0.09225]
[1725742537498,0.202,54204.0,54203.0,0.14757887]
[1725742537706,0.201,54204.0,54203.0,0.14757887]
[1725742539893,0.201,54204.0,54203.0,0.09225]
[1725742540094,0.202,54204.0,54203.0,0.09225]